[Event "Titled Tuesday Blitz February 28 Early 2023"]
[White "Daneshvar, Bardiya"]
[Black "Derix, Bernhard"]
[WhiteFideId "12576468"]
[BlackFideId "4642368"]
[WhiteElo "2482"]
[BlackElo "2604"]
[Result "1-0"]
[Round "04"]
[TimeControl "180+2"]
[Date "2023.02.28"]
[WhiteClock "0:00:17"]
[BlackClock "0:00:01"]

1. b3 {[%clk 0:03:00]}  e5 {[%clk 0:02:58]} 2. Bb2 {[%clk 0:03:01]}  Nc6 {[%clk 0:02:56]} 3. e3 {[%clk 0:03:01]}  Nf6 {[%clk 0:02:55]} 4. Bb5 {[%clk 0:03:00]}  Bd6 {[%clk 0:02:55]} 5. Na3 {[%clk 0:02:59]}  e4 {[%clk 0:02:51]} 6. Nc4 {[%clk 0:02:57]}  Be7 {[%clk 0:02:48]} 7. Bxc6 {[%clk 0:02:55]}  bxc6 {[%clk 0:02:35]} 8. d3 {[%clk 0:02:52]}  O-O {[%clk 0:02:23]} 9. Ne2 {[%clk 0:02:48]}  d5 {[%clk 0:02:16]} 10. Na5 {[%clk 0:02:45]}  Qd6 {[%clk 0:02:05]} 11. h3 {[%clk 0:02:33]}  c5 {[%clk 0:02:01]} 12. Nf4 {[%clk 0:02:19]}  c6 {[%clk 0:01:58]} 13. O-O {[%clk 0:02:08]}  Re8 {[%clk 0:01:53]} 14. a3 {[%clk 0:01:48]}  Qc7 {[%clk 0:01:36]} 15. Bc3 {[%clk 0:01:46]}  d4 {[%clk 0:01:33]} 16. Bd2 {[%clk 0:01:43]}  dxe3 {[%clk 0:01:27]} 17. fxe3 {[%clk 0:01:44]}  exd3 {[%clk 0:01:19]} 18. cxd3 {[%clk 0:01:43]}  Nd5 {[%clk 0:01:20]} 19. Nc4 {[%clk 0:01:40]}  Nxf4 {[%clk 0:01:08]} 20. Rxf4 {[%clk 0:01:38]}  Bg5 {[%clk 0:01:08]} 21. Rf3 {[%clk 0:01:36]}  Be6 {[%clk 0:01:08]} 22. e4 {[%clk 0:01:35]}  Bf6 {[%clk 0:01:06]} 23. Rc1 {[%clk 0:01:34]}  Bd4+ {[%clk 0:01:06]} 24. Kh1 {[%clk 0:01:30]}  Qd7 {[%clk 0:01:02]} 25. Rg3 {[%clk 0:01:26]}  f5 {[%clk 0:01:00]} 26. Qc2 {[%clk 0:01:21]}  fxe4 {[%clk 0:00:57]} 27. dxe4 {[%clk 0:01:22]}  Rf8 {[%clk 0:00:57]} 28. Bc3 {[%clk 0:01:20]}  Rf2 {[%clk 0:00:56]} 29. Qd3 {[%clk 0:01:12]}  Raf8 {[%clk 0:00:56]} 30. Bxd4 {[%clk 0:01:08]}  Qxd4 {[%clk 0:00:55]} 31. Kh2 {[%clk 0:01:06]}  Qxd3 {[%clk 0:00:37]} 32. Rxd3 {[%clk 0:01:06]}  Re2 {[%clk 0:00:37]} 33. Ne3 {[%clk 0:01:03]}  Rf3 {[%clk 0:00:30]} 34. Rd8+ {[%clk 0:00:35]}  Kf7 {[%clk 0:00:30]} 35. Nf5 {[%clk 0:00:31]}  Bxf5 {[%clk 0:00:29]} 36. exf5 {[%clk 0:00:32]}  Rxb3 {[%clk 0:00:26]} 37. Rd7+ {[%clk 0:00:26]}  Kf6 {[%clk 0:00:23]} 38. Rxc5 {[%clk 0:00:24]}  Rxa3 {[%clk 0:00:17]} 39. Rxc6+ {[%clk 0:00:24]}  Kxf5 {[%clk 0:00:17]} 40. Rxg7 {[%clk 0:00:24]}  Raa2 {[%clk 0:00:17]} 41. Rh6 {[%clk 0:00:20]}  a5 {[%clk 0:00:16]} 42. Rhxh7 {[%clk 0:00:21]}  a4 {[%clk 0:00:16]} 43. Rh6 {[%clk 0:00:21]}  a3 {[%clk 0:00:15]} 44. Ra6 {[%clk 0:00:21]}  Re3 {[%clk 0:00:07]} 45. h4 {[%clk 0:00:19]}  Rb2 {[%clk 0:00:07]} 46. Rg5+ {[%clk 0:00:18]}  Kf4 {[%clk 0:00:06]} 47. Ra4+ {[%clk 0:00:17]}  Re4 {[%clk 0:00:05]} 48. Rxa3 {[%clk 0:00:18]}  Rbe2 {[%clk 0:00:01]} 49. Kh3 {[%clk 0:00:17]} 1-0


[Site "https://www.chess.com"]

[Event "Titled Tuesday Blitz February 28 Early 2023"]
[White "Djokovic, Nebojsa"]
[Black "Dominguez Perez, Leinier"]
[WhiteFideId "938300"]
[BlackFideId "3503240"]
[WhiteElo "2600"]
[BlackElo "2647"]
[Result "0-1"]
[Round "04"]
[TimeControl "180+2"]
[Date "2023.02.28"]
[WhiteClock "0:00:01"]
[BlackClock "0:01:02"]

1. e4 {[%clk 0:03:00]}  c5 {[%clk 0:02:59]} 2. Nf3 {[%clk 0:03:01]}  d6 {[%clk 0:03:00]} 3. d4 {[%clk 0:03:01]}  cxd4 {[%clk 0:03:00]} 4. Nxd4 {[%clk 0:03:02]}  Nf6 {[%clk 0:03:01]} 5. Nc3 {[%clk 0:03:03]}  a6 {[%clk 0:03:02]} 6. Be2 {[%clk 0:03:03]}  e5 {[%clk 0:03:02]} 7. Nb3 {[%clk 0:03:04]}  Be6 {[%clk 0:03:02]} 8. O-O {[%clk 0:03:04]}  Nbd7 {[%clk 0:03:02]} 9. f4 {[%clk 0:03:00]}  Rc8 {[%clk 0:03:01]} 10. g4 {[%clk 0:02:48]}  h6 {[%clk 0:02:49]} 11. g5 {[%clk 0:02:45]}  hxg5 {[%clk 0:02:49]} 12. fxg5 {[%clk 0:02:46]}  Rxc3 {[%clk 0:02:42]} 13. bxc3 {[%clk 0:02:15]}  Nxe4 {[%clk 0:02:39]} 14. Bg4 {[%clk 0:01:36]}  Qb6+ {[%clk 0:01:58]} 15. Kg2 {[%clk 0:00:41]}  Nxc3 {[%clk 0:01:57]} 16. Bxe6 {[%clk 0:00:27]}  Nxd1 {[%clk 0:01:52]} 17. Bxd7+ {[%clk 0:00:23]}  Kxd7 {[%clk 0:01:51]} 18. Rxd1 {[%clk 0:00:24]}  Qc6+ {[%clk 0:01:48]} 19. Kg1 {[%clk 0:00:20]}  Rh4 {[%clk 0:01:34]} 20. Be3 {[%clk 0:00:08]}  Rg4+ {[%clk 0:01:19]} 21. Kf1 {[%clk 0:00:06]}  Qf3+ {[%clk 0:01:06]} 22. Bf2 {[%clk 0:00:06]}  Rg2 {[%clk 0:01:04]} 23. Rd2 {[%clk 0:00:04]}  Rxh2 {[%clk 0:01:02]} 24. Rd3 {[%clk 0:00:01]}  Rh1# {[%clk 0:01:02]} 0-1


[Site "https://www.chess.com"]

[Event "Titled Tuesday Blitz February 28 Early 2023"]
[White "Matlakov, Maxim"]
[Black "Gabdrakhmanov, Azat"]
[WhiteFideId "4168003"]
[BlackFideId "34189197"]
[WhiteElo "2666"]
[BlackElo "2315"]
[Result "1-0"]
[Round "04"]
[TimeControl "180+2"]
[Date "2023.02.28"]
[WhiteClock "0:02:10"]
[BlackClock "0:00:21"]

1. e4 {[%clk 0:03:00]}  c5 {[%clk 0:02:59]} 2. Nf3 {[%clk 0:02:59]}  e6 {[%clk 0:02:57]} 3. c3 {[%clk 0:02:58]}  d5 {[%clk 0:02:49]} 4. e5 {[%clk 0:02:50]}  d4 {[%clk 0:02:42]} 5. d3 {[%clk 0:02:49]}  Nc6 {[%clk 0:02:33]} 6. g3 {[%clk 0:02:49]}  Nge7 {[%clk 0:02:30]} 7. Bg2 {[%clk 0:02:48]}  Ng6 {[%clk 0:02:29]} 8. Qe2 {[%clk 0:02:46]}  Be7 {[%clk 0:02:28]} 9. O-O {[%clk 0:02:45]}  Qc7 {[%clk 0:02:21]} 10. Re1 {[%clk 0:02:44]}  Bd7 {[%clk 0:02:13]} 11. h4 {[%clk 0:02:43]}  h5 {[%clk 0:02:04]} 12. Na3 {[%clk 0:02:42]}  dxc3 {[%clk 0:01:35]} 13. bxc3 {[%clk 0:02:41]}  O-O-O {[%clk 0:01:31]} 14. Rb1 {[%clk 0:02:40]}  f6 {[%clk 0:01:16]} 15. Nb5 {[%clk 0:02:38]}  Qb8 {[%clk 0:01:13]} 16. d4 {[%clk 0:02:37]}  a6 {[%clk 0:01:03]} 17. Nd6+ {[%clk 0:02:33]}  Bxd6 {[%clk 0:01:03]} 18. exd6 {[%clk 0:02:34]}  Qxd6 {[%clk 0:01:00]} 19. dxc5 {[%clk 0:02:34]}  Qxc5 {[%clk 0:00:55]} 20. Be3 {[%clk 0:02:33]}  Qa3 {[%clk 0:00:45]} 21. Nd4 {[%clk 0:02:23]}  Nge7 {[%clk 0:00:41]} 22. Rb3 {[%clk 0:02:20]}  Qd6 {[%clk 0:00:33]} 23. Reb1 {[%clk 0:02:19]}  e5 {[%clk 0:00:33]} 24. Rxb7 {[%clk 0:02:15]}  Na5 {[%clk 0:00:21]} 25. R7b6 {[%clk 0:02:10]} 1-0


[Site "https://www.chess.com"]

[Event "Titled Tuesday Blitz February 28 Early 2023"]
[White "Bruzon Batista, Lazaro"]
[Black "Sai Han Thiha"]
[WhiteFideId "3503739"]
[BlackFideId "13012290"]
[WhiteElo "2709"]
[BlackElo "1954"]
[Result "1-0"]
[Round "04"]
[TimeControl "180+2"]
[Date "2023.02.28"]
[WhiteClock "0:00:35"]
[BlackClock "0:00:02"]

1. Nf3 {[%clk 0:03:00]}  Nf6 {[%clk 0:03:00]} 2. g3 {[%clk 0:03:00]}  d5 {[%clk 0:03:00]} 3. Bg2 {[%clk 0:02:59]}  c6 {[%clk 0:03:01]} 4. d3 {[%clk 0:02:58]}  Bf5 {[%clk 0:03:02]} 5. Nh4 {[%clk 0:02:57]}  Bc8 {[%clk 0:02:41]} 6. Nd2 {[%clk 0:02:56]}  e5 {[%clk 0:02:41]} 7. e4 {[%clk 0:02:56]}  Bd6 {[%clk 0:02:38]} 8. O-O {[%clk 0:02:55]}  g5 {[%clk 0:01:28]} 9. Nf5 {[%clk 0:02:46]}  Bxf5 {[%clk 0:01:28]} 10. exf5 {[%clk 0:02:46]}  Nbd7 {[%clk 0:01:24]} 11. c4 {[%clk 0:02:45]}  d4 {[%clk 0:01:18]} 12. Re1 {[%clk 0:02:40]}  O-O {[%clk 0:01:15]} 13. Nf3 {[%clk 0:02:21]}  h6 {[%clk 0:01:14]} 14. h4 {[%clk 0:02:20]}  Nh7 {[%clk 0:01:06]} 15. hxg5 {[%clk 0:02:20]}  hxg5 {[%clk 0:01:07]} 16. Nh2 {[%clk 0:02:13]}  f6 {[%clk 0:01:00]} 17. Bf3 {[%clk 0:02:12]}  Kg7 {[%clk 0:00:59]} 18. Bd2 {[%clk 0:02:08]}  a5 {[%clk 0:00:58]} 19. Kg2 {[%clk 0:01:58]}  Rh8 {[%clk 0:00:58]} 20. Ng4 {[%clk 0:01:58]}  Nc5 {[%clk 0:00:48]} 21. Be4 {[%clk 0:01:56]}  Nf8 {[%clk 0:00:46]} 22. Qf3 {[%clk 0:01:55]}  Nxe4 {[%clk 0:00:36]} 23. Qxe4 {[%clk 0:01:53]}  Nd7 {[%clk 0:00:37]} 24. Rh1 {[%clk 0:01:53]}  Qe7 {[%clk 0:00:37]} 25. Rxh8 {[%clk 0:01:50]}  Rxh8 {[%clk 0:00:38]} 26. Bxa5 {[%clk 0:01:50]}  Nc5 {[%clk 0:00:35]} 27. Qf3 {[%clk 0:01:49]}  e4 {[%clk 0:00:19]} 28. dxe4 {[%clk 0:01:48]}  Qxe4 {[%clk 0:00:19]} 29. Bb4 {[%clk 0:01:26]}  Qxf3+ {[%clk 0:00:19]} 30. Kxf3 {[%clk 0:01:26]}  b6 {[%clk 0:00:20]} 31. Rd1 {[%clk 0:01:25]}  d3 {[%clk 0:00:17]} 32. Bxc5 {[%clk 0:01:24]}  Bxc5 {[%clk 0:00:18]} 33. Rxd3 {[%clk 0:01:24]}  Rf8 {[%clk 0:00:14]} 34. a3 {[%clk 0:01:22]}  Rf7 {[%clk 0:00:14]} 35. b4 {[%clk 0:01:22]}  Bf8 {[%clk 0:00:15]} 36. Rd8 {[%clk 0:01:13]}  Ra7 {[%clk 0:00:15]} 37. Rc8 {[%clk 0:01:11]}  c5 {[%clk 0:00:16]} 38. b5 {[%clk 0:01:06]}  Kf7 {[%clk 0:00:12]} 39. Rc6 {[%clk 0:01:05]}  Rxa3+ {[%clk 0:00:11]} 40. Ke4 {[%clk 0:01:05]}  Rc3 {[%clk 0:00:10]} 41. Rxf6+ {[%clk 0:01:02]}  Ke7 {[%clk 0:00:08]} 42. Re6+ {[%clk 0:01:01]}  Kd8 {[%clk 0:00:09]} 43. Kd5 {[%clk 0:01:00]}  Kd7 {[%clk 0:00:05]} 44. Ne5+ {[%clk 0:00:59]}  Kc7 {[%clk 0:00:05]} 45. f6 {[%clk 0:00:54]}  Rc2 {[%clk 0:00:04]} 46. Rc6+ {[%clk 0:00:53]}  Kb7 {[%clk 0:00:04]} 47. f4 {[%clk 0:00:53]}  gxf4 {[%clk 0:00:04]} 48. gxf4 {[%clk 0:00:54]}  Rd2+ {[%clk 0:00:04]} 49. Ke6 {[%clk 0:00:52]}  Bh6 {[%clk 0:00:03]} 50. f7 {[%clk 0:00:51]}  Rd8 {[%clk 0:00:03]} 51. Nd7 {[%clk 0:00:49]}  Bf8 {[%clk 0:00:02]} 52. Rxb6+ {[%clk 0:00:49]}  Kc7 {[%clk 0:00:02]} 53. Rc6+ {[%clk 0:00:49]}  Kb7 {[%clk 0:00:02]} 54. Nxf8 {[%clk 0:00:48]}  Rxf8 {[%clk 0:00:02]} 55. Rxc5 {[%clk 0:00:47]}  Kb6 {[%clk 0:00:02]} 56. Rf5 {[%clk 0:00:47]}  Kb7 {[%clk 0:00:03]} 57. Ke7 {[%clk 0:00:47]}  Ra8 {[%clk 0:00:03]} 58. f8=Q {[%clk 0:00:46]}  Ra1 {[%clk 0:00:04]} 59. c5 {[%clk 0:00:40]}  Re1+ {[%clk 0:00:03]} 60. Kf6 {[%clk 0:00:38]}  Ka7 {[%clk 0:00:03]} 61. Qe7+ {[%clk 0:00:36]}  Rxe7 {[%clk 0:00:01]} 62. Kxe7 {[%clk 0:00:36]}  Kb7 {[%clk 0:00:02]} 63. Kd6 {[%clk 0:00:36]}  Ka7 {[%clk 0:00:02]} 64. Rf7+ {[%clk 0:00:36]}  Kb8 {[%clk 0:00:02]} 65. c6 {[%clk 0:00:35]}  Ka8 {[%clk 0:00:02]} 66. b6 {[%clk 0:00:35]}  Kb8 {[%clk 0:00:02]} 67. Rf8# {[%clk 0:00:35]} 1-0


[Site "https://www.chess.com"]

[Event "Titled Tuesday Blitz February 28 Early 2023"]
[White "Perez Ponsa, Federico"]
[Black "Berezin, Viktor"]
[WhiteFideId "117927"]
[BlackFideId "14107872"]
[WhiteElo "2592"]
[BlackElo "2310"]
[Result "1-0"]
[Round "04"]
[TimeControl "180+2"]
[Date "2023.02.28"]
[WhiteClock "0:00:26"]
[BlackClock "0:00:22"]

1. d4 {[%clk 0:02:54]}  Nf6 {[%clk 0:02:59]} 2. c4 {[%clk 0:02:54]}  g6 {[%clk 0:03:00]} 3. g3 {[%clk 0:02:53]}  Bg7 {[%clk 0:03:00]} 4. Bg2 {[%clk 0:02:54]}  O-O {[%clk 0:03:01]} 5. Nc3 {[%clk 0:02:54]}  d6 {[%clk 0:03:01]} 6. Nf3 {[%clk 0:02:55]}  Nc6 {[%clk 0:03:01]} 7. O-O {[%clk 0:02:55]}  a6 {[%clk 0:03:01]} 8. d5 {[%clk 0:02:55]}  Na5 {[%clk 0:03:01]} 9. b3 {[%clk 0:02:48]}  c5 {[%clk 0:02:59]} 10. Bg5 {[%clk 0:02:48]}  h6 {[%clk 0:02:50]} 11. Bd2 {[%clk 0:02:45]}  Rb8 {[%clk 0:02:50]} 12. Qe1 {[%clk 0:02:36]}  b5 {[%clk 0:02:37]} 13. Nd1 {[%clk 0:01:38]}  Nb7 {[%clk 0:02:26]} 14. Rc1 {[%clk 0:01:36]}  e5 {[%clk 0:02:24]} 15. e4 {[%clk 0:01:33]}  Ne8 {[%clk 0:02:15]} 16. Nh4 {[%clk 0:01:32]}  Kh7 {[%clk 0:02:15]} 17. f4 {[%clk 0:01:27]}  f5 {[%clk 0:01:39]} 18. exf5 {[%clk 0:01:21]}  gxf5 {[%clk 0:01:39]} 19. Ne3 {[%clk 0:01:20]}  e4 {[%clk 0:01:29]} 20. Nexf5 {[%clk 0:01:16]}  Nf6 {[%clk 0:01:22]} 21. Nxg7 {[%clk 0:01:13]}  Kxg7 {[%clk 0:01:23]} 22. Bc3 {[%clk 0:01:13]}  Bg4 {[%clk 0:01:14]} 23. Qxe4 {[%clk 0:01:12]}  Bh5 {[%clk 0:01:10]} 24. Qf5 {[%clk 0:01:08]}  Be8 {[%clk 0:00:47]} 25. Be4 {[%clk 0:00:45]}  Kg8 {[%clk 0:00:33]} 26. Bxf6 {[%clk 0:00:28]}  Qd7 {[%clk 0:00:33]} 27. Qxd7 {[%clk 0:00:24]}  Bxd7 {[%clk 0:00:34]} 28. Bc3 {[%clk 0:00:24]}  a5 {[%clk 0:00:32]} 29. Rfe1 {[%clk 0:00:23]}  a4 {[%clk 0:00:32]} 30. Ng6 {[%clk 0:00:23]}  Rfe8 {[%clk 0:00:29]} 31. Bd3 {[%clk 0:00:24]}  axb3 {[%clk 0:00:26]} 32. axb3 {[%clk 0:00:24]}  b4 {[%clk 0:00:26]} 33. Bb2 {[%clk 0:00:24]}  Na5 {[%clk 0:00:27]} 34. Bc2 {[%clk 0:00:24]}  Kf7 {[%clk 0:00:26]} 35. Nh4 {[%clk 0:00:24]}  Bg4 {[%clk 0:00:25]} 36. Bg6+ {[%clk 0:00:24]}  Kf8 {[%clk 0:00:24]} 37. Bxe8 {[%clk 0:00:23]}  Rxe8 {[%clk 0:00:25]} 38. Ng6+ {[%clk 0:00:24]}  Kf7 {[%clk 0:00:25]} 39. Nh8+ {[%clk 0:00:23]}  Kf8 {[%clk 0:00:25]} 40. Bg7+ {[%clk 0:00:23]}  Kxg7 {[%clk 0:00:23]} 41. Rxe8 {[%clk 0:00:24]}  Nxb3 {[%clk 0:00:23]} 42. Rce1 {[%clk 0:00:25]}  Nd4 {[%clk 0:00:23]} 43. R1e7+ {[%clk 0:00:25]}  Kf6 {[%clk 0:00:22]} 44. Rf7# {[%clk 0:00:26]} 1-0


[Site "https://www.chess.com"]

[Event "Titled Tuesday Blitz February 28 Early 2023"]
[White "Saravana, Krishnan P."]
[Black "Livaic, Leon"]
[WhiteFideId "5018382"]
[BlackFideId "14531534"]
[WhiteElo "2189"]
[BlackElo "2509"]
[Result "0-1"]
[Round "04"]
[TimeControl "180+2"]
[Date "2023.02.28"]
[WhiteClock "0:00:09"]
[BlackClock "0:00:55"]

1. e4 {[%clk 0:03:00]}  d5 {[%clk 0:02:53]} 2. exd5 {[%clk 0:02:59]}  Qxd5 {[%clk 0:02:54]} 3. Nf3 {[%clk 0:02:59]}  Nc6 {[%clk 0:02:52]} 4. Be2 {[%clk 0:02:57]}  Bg4 {[%clk 0:02:51]} 5. h3 {[%clk 0:02:57]}  Bh5 {[%clk 0:02:49]} 6. Nc3 {[%clk 0:02:54]}  Qd7 {[%clk 0:02:46]} 7. d4 {[%clk 0:02:49]}  e6 {[%clk 0:02:42]} 8. Be3 {[%clk 0:02:48]}  Bb4 {[%clk 0:02:41]} 9. O-O {[%clk 0:02:47]}  Nf6 {[%clk 0:02:41]} 10. Ne5 {[%clk 0:02:40]}  Bxe2 {[%clk 0:02:33]} 11. Qxe2 {[%clk 0:02:32]}  Nxe5 {[%clk 0:02:32]} 12. dxe5 {[%clk 0:02:32]}  Bxc3 {[%clk 0:02:33]} 13. bxc3 {[%clk 0:02:28]}  Nd5 {[%clk 0:02:33]} 14. Bc5 {[%clk 0:02:04]}  Qc6 {[%clk 0:02:25]} 15. Bd4 {[%clk 0:01:59]}  O-O {[%clk 0:02:08]} 16. Qf3 {[%clk 0:01:50]}  Ne7 {[%clk 0:02:04]} 17. Qxc6 {[%clk 0:01:17]}  Nxc6 {[%clk 0:02:05]} 18. f4 {[%clk 0:01:17]}  Rfd8 {[%clk 0:02:02]} 19. Be3 {[%clk 0:01:14]}  Na5 {[%clk 0:02:00]} 20. Rfd1 {[%clk 0:01:07]}  Nc4 {[%clk 0:01:59]} 21. Kf2 {[%clk 0:01:07]}  b6 {[%clk 0:01:56]} 22. Ke2 {[%clk 0:01:05]}  Nb2 {[%clk 0:01:36]} 23. Rd4 {[%clk 0:00:55]}  c5 {[%clk 0:01:35]} 24. Re4 {[%clk 0:00:47]}  b5 {[%clk 0:01:23]} 25. Bxc5 {[%clk 0:00:46]}  Na4 {[%clk 0:01:19]} 26. Bd4 {[%clk 0:00:40]}  Rac8 {[%clk 0:01:19]} 27. Re3 {[%clk 0:00:39]}  b4 {[%clk 0:01:15]} 28. Rd1 {[%clk 0:00:31]}  a5 {[%clk 0:01:13]} 29. cxb4 {[%clk 0:00:19]}  Rxc2+ {[%clk 0:01:12]} 30. Kf3 {[%clk 0:00:19]}  axb4 {[%clk 0:01:09]} 31. Red3 {[%clk 0:00:19]}  h5 {[%clk 0:00:57]} 32. g4 {[%clk 0:00:11]}  hxg4+ {[%clk 0:00:57]} 33. hxg4 {[%clk 0:00:11]}  Rxa2 {[%clk 0:00:57]} 34. f5 {[%clk 0:00:12]}  Ra3 {[%clk 0:00:55]} 35. fxe6 {[%clk 0:00:10]}  fxe6 {[%clk 0:00:56]} 36. Rxa3 {[%clk 0:00:09]}  bxa3 {[%clk 0:00:56]} 37. Ke4 {[%clk 0:00:09]}  Nc3+ {[%clk 0:00:55]} 0-1


[Site "https://www.chess.com"]

[Event "Titled Tuesday Blitz February 28 Early 2023"]
[White "Aldokhin, Ivan"]
[Black "Acor, Corey"]
[WhiteFideId "24115720"]
[BlackFideId "2024861"]
[WhiteElo "2322"]
[BlackElo "2341"]
[Result "1/2-1/2"]
[Round "04"]
[TimeControl "180+2"]
[Date "2023.02.28"]
[WhiteClock "0:00:12"]
[BlackClock "0:00:17"]

1. e4 {[%clk 0:02:53]}  e5 {[%clk 0:02:59]} 2. Nf3 {[%clk 0:02:53]}  Nc6 {[%clk 0:02:58]} 3. Bb5 {[%clk 0:02:54]}  Nge7 {[%clk 0:02:58]} 4. Nc3 {[%clk 0:02:54]}  d6 {[%clk 0:02:57]} 5. d4 {[%clk 0:02:52]}  Bd7 {[%clk 0:02:55]} 6. Bg5 {[%clk 0:02:50]}  h6 {[%clk 0:02:54]} 7. Be3 {[%clk 0:02:50]}  Ng6 {[%clk 0:02:44]} 8. Qd2 {[%clk 0:02:38]}  Be7 {[%clk 0:02:41]} 9. O-O-O {[%clk 0:02:37]}  a6 {[%clk 0:02:36]} 10. Bxc6 {[%clk 0:02:23]}  Bxc6 {[%clk 0:02:37]} 11. dxe5 {[%clk 0:02:23]}  dxe5 {[%clk 0:02:35]} 12. Nd5 {[%clk 0:02:17]}  Bxd5 {[%clk 0:02:29]} 13. Qxd5 {[%clk 0:02:14]}  Qxd5 {[%clk 0:02:30]} 14. Rxd5 {[%clk 0:02:15]}  Bd6 {[%clk 0:02:28]} 15. c4 {[%clk 0:02:11]}  b6 {[%clk 0:02:28]} 16. Bxb6 {[%clk 0:01:49]}  Nf4 {[%clk 0:02:28]} 17. Rdd1 {[%clk 0:01:39]}  O-O-O {[%clk 0:02:08]} 18. Ba5 {[%clk 0:01:16]}  f5 {[%clk 0:01:32]} 19. exf5 {[%clk 0:01:03]}  e4 {[%clk 0:01:33]} 20. Nd4 {[%clk 0:00:54]}  Nd3+ {[%clk 0:01:31]} 21. Rxd3 {[%clk 0:00:48]}  exd3 {[%clk 0:01:32]} 22. Ne6 {[%clk 0:00:48]}  Rd7 {[%clk 0:01:28]} 23. Bc3 {[%clk 0:00:44]}  Rg8 {[%clk 0:01:26]} 24. Rd1 {[%clk 0:00:28]}  Be7 {[%clk 0:01:24]} 25. f4 {[%clk 0:00:22]}  Bf6 {[%clk 0:01:22]} 26. Bxf6 {[%clk 0:00:16]}  gxf6 {[%clk 0:01:21]} 27. g3 {[%clk 0:00:16]}  h5 {[%clk 0:01:10]} 28. Kd2 {[%clk 0:00:15]}  h4 {[%clk 0:01:10]} 29. Rg1 {[%clk 0:00:15]}  hxg3 {[%clk 0:01:07]} 30. hxg3 {[%clk 0:00:15]}  Rh8 {[%clk 0:01:05]} 31. Rg2 {[%clk 0:00:16]}  Rh1 {[%clk 0:00:56]} 32. g4 {[%clk 0:00:14]}  Rb1 {[%clk 0:00:47]} 33. Ke3 {[%clk 0:00:11]}  Re1+ {[%clk 0:00:46]} 34. Kd2 {[%clk 0:00:11]}  Rb1 {[%clk 0:00:38]} 35. Ke3 {[%clk 0:00:11]}  Re1+ {[%clk 0:00:18]} 36. Kd2 {[%clk 0:00:12]}  Rb1 {[%clk 0:00:17]} 1/2-1/2


[Site "https://www.chess.com"]

[Event "Titled Tuesday Blitz February 28 Early 2023"]
[White "Ohanyan, Emin"]
[Black "Ordekalog"]
[WhiteFideId "13312022"]
[WhiteElo "2403"]
[BlackElo "2578"]
[Result "1-0"]
[Round "04"]
[TimeControl "180+2"]
[Date "2023.02.28"]
[WhiteClock "0:00:04"]
[BlackClock "0:00:11"]

1. e4 {[%clk 0:02:54]}  c5 {[%clk 0:02:57]} 2. Nf3 {[%clk 0:02:54]}  e6 {[%clk 0:02:57]} 3. d4 {[%clk 0:02:54]}  cxd4 {[%clk 0:02:56]} 4. Nxd4 {[%clk 0:02:55]}  Nf6 {[%clk 0:02:56]} 5. Nc3 {[%clk 0:02:55]}  Nc6 {[%clk 0:02:56]} 6. Nxc6 {[%clk 0:02:55]}  bxc6 {[%clk 0:02:56]} 7. e5 {[%clk 0:02:56]}  Nd5 {[%clk 0:02:56]} 8. Ne4 {[%clk 0:02:57]}  f5 {[%clk 0:02:56]} 9. exf6 {[%clk 0:02:55]}  Nxf6 {[%clk 0:02:55]} 10. Nd6+ {[%clk 0:02:56]}  Bxd6 {[%clk 0:02:55]} 11. Qxd6 {[%clk 0:02:57]}  Qb6 {[%clk 0:02:55]} 12. Bd3 {[%clk 0:02:19]}  c5 {[%clk 0:02:51]} 13. Bf4 {[%clk 0:02:11]}  Bb7 {[%clk 0:02:45]} 14. O-O {[%clk 0:02:08]}  Rc8 {[%clk 0:02:39]} 15. c4 {[%clk 0:01:34]}  Qxd6 {[%clk 0:02:32]} 16. Bxd6 {[%clk 0:01:32]}  Rc6 {[%clk 0:02:31]} 17. Be5 {[%clk 0:01:31]}  Rb6 {[%clk 0:02:26]} 18. Rfe1 {[%clk 0:01:27]}  Kf7 {[%clk 0:02:24]} 19. Rad1 {[%clk 0:01:25]}  a5 {[%clk 0:02:06]} 20. Bc2 {[%clk 0:01:09]}  d5 {[%clk 0:01:47]} 21. f3 {[%clk 0:01:01]}  Rc8 {[%clk 0:01:34]} 22. Bc3 {[%clk 0:00:58]}  d4 {[%clk 0:01:24]} 23. Bxa5 {[%clk 0:00:58]}  Ra6 {[%clk 0:01:24]} 24. Bd2 {[%clk 0:00:50]}  Rxa2 {[%clk 0:01:23]} 25. Bc1 {[%clk 0:00:19]}  Ba6 {[%clk 0:01:21]} 26. Bd3 {[%clk 0:00:20]}  Rb8 {[%clk 0:01:20]} 27. Re5 {[%clk 0:00:20]}  Nd7 {[%clk 0:01:17]} 28. Rh5 {[%clk 0:00:16]}  Rb3 {[%clk 0:01:14]} 29. Rxh7 {[%clk 0:00:10]}  Rxd3 {[%clk 0:01:13]} 30. Rxd3 {[%clk 0:00:10]}  Bxc4 {[%clk 0:01:13]} 31. Rd1 {[%clk 0:00:07]}  Bb3 {[%clk 0:01:02]} 32. Re1 {[%clk 0:00:07]}  Nf6 {[%clk 0:01:01]} 33. Rh8 {[%clk 0:00:07]}  Ng8 {[%clk 0:00:56]} 34. Rh5 {[%clk 0:00:06]}  Bd5 {[%clk 0:00:55]} 35. Rhe5 {[%clk 0:00:04]}  Nf6 {[%clk 0:00:54]} 36. h4 {[%clk 0:00:04]}  Nd7 {[%clk 0:00:52]} 37. R5e2 {[%clk 0:00:04]}  c4 {[%clk 0:00:51]} 38. Rf2 {[%clk 0:00:04]}  d3 {[%clk 0:00:50]} 39. Be3 {[%clk 0:00:03]}  Nb8 {[%clk 0:00:38]} 40. Bd4 {[%clk 0:00:03]}  Na6 {[%clk 0:00:35]} 41. h5 {[%clk 0:00:03]}  Nb4 {[%clk 0:00:34]} 42. Bc3 {[%clk 0:00:04]}  Nc2 {[%clk 0:00:34]} 43. Re5 {[%clk 0:00:04]}  Ra1+ {[%clk 0:00:33]} 44. Kh2 {[%clk 0:00:05]}  Ke7 {[%clk 0:00:17]} 45. Rg5 {[%clk 0:00:05]}  Kd6 {[%clk 0:00:16]} 46. Rxg7 {[%clk 0:00:05]}  Ne3 {[%clk 0:00:14]} 47. h6 {[%clk 0:00:05]}  Nf5 {[%clk 0:00:11]} 48. h7 {[%clk 0:00:04]} 1-0


[Site "https://www.chess.com"]